fUST/lending_fUST_20251010
["ID","MTS","AMOUNT","RATE_DAILY","PERIOD"]
[390599084,1760100646135,-151.0,0.00017127,2]
[390599085,1760100646144,-151.0,0.00017127,2]
[390599086,1760100646154,-151.0,0.00017127,2]
[390599087,1760100646163,-942.0,0.0001715,2]
[390599088,1760100646173,-163.42542046,0.000172,2]
[390599089,1760100646182,-942.0,0.00017205,2]
[390599090,1760100646192,-3135.0,0.00017224,2]
[390599091,1760100646202,-603.50315605,0.00017256,2]
[390599092,1760100646211,-2758.96,0.00017259,2]
[390599093,1760100646221,-2758.96,0.00017259,2]
[390599094,1760100646231,-2758.96,0.00017259,2]
[390599095,1760100646241,-2758.96,0.00017259,2]
[390599096,1760100646250,-2758.96,0.00017259,2]
[390599097,1760100646261,-942.0,0.0001726,2]
[390599098,1760100646270,-500.0,0.0001726,2]
[390599099,1760100646279,-500.0,0.0001726,2]
[390599100,1760100646289,-500.0,0.0001726,2]
[390599101,1760100646298,-500.0,0.0001726,2]
[390599102,1760100646307,-500.0,0.0001726,2]
[390599104,1760100646317,-159.66,0.0001726,2]
[390599106,1760100646326,-151.0,0.0001726,2]
[390599108,1760100646336,-151.0,0.0001726,2]
[390599110,1760100646345,-866.12,0.0001726,2]
[390599113,1760100646355,-151.418394,0.0001726,2]
[390599116,1760100646365,-151.555572,0.0001726,2]
[390599118,1760100646374,-500.0,0.0001726,2]
[390599120,1760100646384,-151.321248,0.0001726,2]
[390599122,1760100646393,-761.63,0.0001726,2]
[390599123,1760100646403,-151.0,0.0001726,2]
[390599124,1760100646412,-500.0,0.0001726,2]
[390599125,1760100646422,-151.0,0.0001726,2]
[390599127,1760100646431,-151.0,0.0001726,2]
[390599128,1760100646440,-1374.74,0.0001726,2]
[390599129,1760100646449,-500.0,0.0001726,2]
[390599130,1760100646459,-631.69,0.0001726,2]
[390599131,1760100646468,-500.0,0.0001726,2]
[390599132,1760100646478,-323.30743066,0.0001726,2]
[390599133,1760100646492,-151.0,0.0001726,2]
[390599134,1760100646502,-500.0,0.0001726,2]
[390599135,1760100646512,-691.07,0.0001726,2]
[390599136,1760100646522,-500.0,0.0001726,2]
[390599137,1760100646532,-500.0,0.0001726,2]
[390599138,1760100646542,-568.67,0.0001726,2]
[390599139,1760100646551,-500.0,0.0001726,2]
[390599140,1760100646562,-1135.66,0.0001726,2]
[390599141,1760100646571,-500.0,0.0001726,2]
[390599142,1760100646581,-802.08,0.0001726,2]
[390599143,1760100646590,-1224.57,0.0001726,2]
[390599144,1760100646599,-500.0,0.0001726,2]
[390599145,1760100646609,-500.0,0.0001726,2]
[390599146,1760100646619,-500.0,0.0001726,2]
[390599147,1760100646629,-500.0,0.0001726,2]
[390599148,1760100646638,-151.0,0.0001726,2]
[390599149,1760100646647,-151.0,0.0001726,2]
[390599150,1760100646657,-151.0,0.0001726,2]
[390599151,1760100646667,-500.0,0.0001726,2]
[390599152,1760100646678,-151.0,0.0001726,2]
[390599153,1760100646689,-500.0,0.0001726,2]
[390599154,1760100646699,-151.0,0.0001726,2]
[390599155,1760100646709,-500.0,0.0001726,2]
[390599156,1760100646721,-500.0,0.0001726,2]
[390599157,1760100646731,-151.0,0.0001726,2]
[390599158,1760100646741,-925.79,0.0001726,2]
[390599159,1760100646751,-500.0,0.0001726,2]
[390599160,1760100646760,-500.0,0.0001726,2]
[390599161,1760100646769,-500.0,0.0001726,2]
[390599162,1760100646779,-4912.41,0.0001726,2]
[390599163,1760100646788,-500.0,0.0001726,2]
[390599164,1760100646797,-500.0,0.0001726,2]
[390599165,1760100646807,-500.0,0.0001726,2]
[390599166,1760100646816,-327.42,0.0001726,2]
[390599167,1760100646826,-500.0,0.0001726,2]
[390599168,1760100646835,-500.0,0.0001726,2]
[390599169,1760100646844,-500.0,0.0001726,2]
[390599170,1760100646854,-152.031456,0.0001726,2]
[390599171,1760100646863,-151.0,0.0001726,2]
[390599172,1760100646873,-151.0,0.0001726,2]
[390599173,1760100646883,-500.0,0.0001726,2]
[390599174,1760100646893,-500.0,0.0001726,2]
[390599175,1760100646903,-644.11,0.0001726,2]
[390599176,1760100646913,-359.00745,0.0001726,2]
[390599177,1760100646923,-359.00745,0.0001726,2]
[390599178,1760100646933,-359.00745,0.0001726,2]
[390599179,1760100646944,-359.00745,0.0001726,2]
[390599180,1760100646954,-604.21,0.0001726,2]
[390599181,1760100646965,-500.0,0.0001726,2]
[390599182,1760100646976,-500.0,0.0001726,2]
[390599183,1760100646987,-500.0,0.0001726,2]
[390599184,1760100646998,-618.97,0.0001726,2]
[390599185,1760100647008,-1292.2,0.0001726,2]
[390599186,1760100647020,-6221.6,0.0001726,2]
[390599187,1760100647032,-4740.98,0.0001726,2]
[390599188,1760100647042,-161.64,0.0001726,2]
[390599189,1760100647053,-500.0,0.0001726,2]
[390599190,1760100647063,-500.0,0.0001726,2]
[390599191,1760100647073,-500.0,0.0001726,2]
[390599192,1760100647083,-1636.15,0.0001726,2]
[390599193,1760100647092,-500.0,0.0001726,2]
[390599194,1760100647102,-1636.85,0.0001726,2]
[390599195,1760100647111,-636.74,0.0001726,2]
[390599196,1760100647120,-1907.54,0.0001726,2]
[390599197,1760100647130,-500.0,0.0001726,2]
[390599198,1760100647139,-500.0,0.0001726,2]
[390599199,1760100647149,-516.43923959,0.0001726,2]
[390599200,1760100647158,-274.00528284,0.0001726,2]
[390599201,1760100647168,-680.61,0.0001726,2]
[390599202,1760100647178,-2232.5,0.0001726,2]
[390599203,1760100647188,-718.36,0.0001726,2]
[390599204,1760100647197,-1107.56,0.0001726,2]
[390599205,1760100647207,-500.0,0.0001726,2]
[390599206,1760100647217,-175.94160139,0.0001726,2]
[390599207,1760100647227,-910.01,0.0001726,2]
[390599208,1760100647236,-151.0,0.0001726,2]
[390599209,1760100647245,-151.0,0.0001726,2]
[390599210,1760100647255,-644.11,0.0001726,2]
[390599211,1760100647265,-500.0,0.0001726,2]
[390599212,1760100647275,-3977.38,0.0001726,2]
[390599213,1760100647285,-2829.06,0.0001726,2]
[390599214,1760100647295,-661.07,0.0001726,2]
[390599215,1760100647305,-947.3,0.0001726,2]
[390599216,1760100647316,-1130.39,0.0001726,2]
[390599217,1760100647326,-211.10985145,0.0001726,2]
[390599218,1760100647336,-500.0,0.0001726,2]
[390599219,1760100647346,-582.38,0.0001726,2]
[390599220,1760100647355,-725.03,0.0001726,2]
[390599221,1760100647366,-876.53,0.0001726,2]
[390599222,1760100647375,-500.0,0.0001726,2]
[390599223,1760100647385,-500.0,0.0001726,2]
[390599224,1760100647395,-500.0,0.0001726,2]
[390599225,1760100647405,-500.0,0.0001726,2]
[390599226,1760100647415,-500.0,0.0001726,2]
[390599227,1760100647424,-320.003172,0.0001726,2]
[390599228,1760100647434,-1845.07,0.0001726,2]
[390599229,1760100647444,-320.003172,0.0001726,2]
[390599230,1760100647453,-513.32,0.0001726,2]
[390599231,1760100647463,-1930.29,0.0001726,2]
[390599232,1760100647472,-320.003172,0.0001726,2]
[390599233,1760100647482,-320.003172,0.0001726,2]
[390599234,1760100647492,-500.0,0.0001726,2]
[390599235,1760100647502,-177.607044,0.0001726,2]
[390599236,1760100647513,-177.607044,0.0001726,2]
[390599237,1760100647523,-500.0,0.0001726,2]
[390599238,1760100647664,-177.607044,0.0001726,2]
[390599239,1760100647674,-177.607044,0.0001726,2]
[390599240,1760100647683,-3127.98,0.0001726,2]
[390599241,1760100647692,-244.097566,0.0001726,2]
[390599242,1760100647702,-500.0,0.0001726,2]
[390599243,1760100647714,-500.0,0.0001726,2]
[390599244,1760100647723,-713.07,0.0001726,2]
[390599245,1760100647733,-691.43,0.0001726,2]
[390599246,1760100647742,-500.0,0.0001726,2]
[390599247,1760100647752,-501.38,0.0001726,2]
[390599248,1760100647762,-500.0,0.0001726,2]
[390599249,1760100647773,-500.0,0.0001726,2]
[390599250,1760100647787,-500.0,0.0001726,2]
[390599251,1760100647797,-585.78,0.0001726,2]
[390599252,1760100647806,-1532.17,0.0001726,2]
[390599253,1760100647816,-728.07,0.0001726,2]
[390599254,1760100647825,-786.43,0.0001726,2]
[390599255,1760100647834,-914.65,0.0001726,2]
[390599256,1760100647844,-151.0,0.0001726,2]
[390599257,1760100647854,-2646.0,0.0001726,2]
[390599258,1760100647863,-730.7,0.0001726,2]
[390599259,1760100647872,-500.0,0.0001726,2]
[390599260,1760100647882,-151.0,0.0001726,2]
[390599261,1760100647891,-151.0,0.0001726,2]
[390599262,1760100647900,-500.0,0.0001726,2]
[390599263,1760100647910,-1999.92,0.0001726,2]
[390599264,1760100647919,-151.0,0.0001726,2]
[390599265,1760100647928,-151.0,0.0001726,2]
[390599266,1760100647937,-846.89,0.0001726,2]
[390599267,1760100647946,-786.83,0.0001726,2]
[390599268,1760100647955,-293.014755,0.0001726,2]
[390599269,1760100647965,-500.0,0.0001726,2]
[390599270,1760100647974,-540.24,0.0001726,2]
[390599271,1760100647983,-293.014755,0.0001726,2]
[390599272,1760100647992,-500.0,0.0001726,2]
[390599273,1760100648002,-293.014755,0.0001726,2]
[390599274,1760100648011,-821.38,0.0001726,2]
[390599275,1760100648020,-500.0,0.0001726,2]
[390599276,1760100648029,-553.4796337,0.0001726,2]
[390599277,1760100648038,-293.014755,0.0001726,2]
[390599278,1760100648047,-500.0,0.0001726,2]
[390599279,1760100648056,-500.0,0.0001726,2]
[390599280,1760100648066,-500.0,0.0001726,2]
[390599281,1760100648075,-164.290987,0.0001726,2]
[390599282,1760100648084,-164.290987,0.0001726,2]
[390599283,1760100648094,-164.290987,0.0001726,2]
[390599284,1760100648104,-500.0,0.0001726,2]
[390599285,1760100648113,-164.290987,0.0001726,2]
[390599286,1760100648123,-500.0,0.0001726,2]
[390599287,1760100648132,-500.0,0.0001726,2]
[390599288,1760100648141,-500.0,0.0001726,2]
[390599289,1760100648150,-500.0,0.0001726,2]
[390599290,1760100648159,-500.0,0.0001726,2]
[390599291,1760100648168,-573.53,0.0001726,2]
[390599292,1760100648177,-1694.54,0.0001726,2]
[390599293,1760100648187,-820.05,0.0001726,2]
[390599294,1760100648196,-500.0,0.0001726,2]
[390599295,1760100648205,-500.0,0.0001726,2]
[390599296,1760100648214,-942.0,0.00017315,2]
[390599297,1760100648223,-600.0,0.00017359,2]
[390599298,1760100648233,-942.0,0.0001737,2]
[390599299,1760100648242,-170.57967988,0.00017376,2]
[390599300,1760100648251,-941.655,0.00017376,2]
[390599301,1760100648261,-3135.0,0.00017386,2]
[390599302,1760100648270,-163.42542046,0.000174,2]
[390599303,1760100648279,-168.0,0.00017412,2]
[390599304,1760100648288,-232.335434,0.00017424,2]
[390599305,1760100648297,-151.0,0.00017424,2]
[390599306,1760100648307,-151.0,0.00017424,2]
[390599307,1760100648315,-168.374148,0.00017424,2]
[390599308,1760100648324,-293.014755,0.00017424,2]
[390599309,1760100648334,-293.014755,0.00017424,2]
[390599310,1760100648343,-293.014755,0.00017424,2]
[390599311,1760100648352,-293.014755,0.00017424,2]
[390599312,1760100648361,-164.290987,0.00017424,2]
[390599313,1760100648370,-164.290987,0.00017424,2]
[390599314,1760100648379,-164.290987,0.00017424,2]
[390599315,1760100648388,-164.290987,0.00017424,2]
[390599316,1760100648397,-327.7510355,0.00017424,2]
[390599317,1760100648407,-942.0,0.00017424,2]
[390599318,1760100648415,-297.8284942,0.00017425,2]
[390599319,1760100648425,-162.8446322,0.00017425,2]
[390599320,1760100648434,-297.8284942,0.00017425,2]
[390599321,1760100648443,-162.8446322,0.00017425,2]
[390599322,1760100648452,-162.8446322,0.00017425,2]
[390599323,1760100648461,-595.4697396,0.00017425,2]
[390599324,1760100648470,-162.8446322,0.00017425,2]
[390599325,1760100648479,-162.8446322,0.00017425,2]
[390599326,1760100648489,-297.8284942,0.00017425,2]
[390599327,1760100648498,-942.0,0.00017479,2]
[390599328,1760100648508,-232.0,0.00017511,2]
[390599329,1760100648517,-2758.96,0.00017533,2]
[390599330,1760100648527,-2758.96,0.00017533,2]
[390599331,1760100648536,-2758.96,0.00017533,2]
[390599332,1760100648545,-2758.96,0.00017533,2]
[390599333,1760100648554,-2759.09166338,0.00017533,2]
[390599334,1760100648564,-942.0,0.00017534,2]
[390599335,1760100648573,-500.0,0.00017534,2]
[390599336,1760100648582,-372.10225396,0.00017534,2]
[390599337,1760100648592,-500.0,0.00017534,2]
[390599338,1760100648601,-500.53836085,0.00017534,2]
[390599339,1760100648610,-500.0,0.00017534,2]
[390599340,1760100648619,-500.0,0.00017534,2]
[390599341,1760100648629,-500.0,0.00017534,2]
[390599342,1760100648638,-500.0,0.00017534,2]
[390599343,1760100648647,-500.0,0.00017534,2]
[390599344,1760100648657,-500.0,0.00017534,2]
[390599345,1760100648666,-500.0,0.00017534,2]
[390599346,1760100648675,-157.30324439,0.00017534,2]
[390599347,1760100648684,-500.86991837,0.00017534,2]
[390599348,1760100648693,-500.0,0.00017534,2]
[390599349,1760100648703,-500.0,0.00017534,2]
[390599350,1760100648717,-514.06567756,0.00017534,2]
[390599351,1760100648726,-500.0,0.00017534,2]
[390599352,1760100648737,-500.0,0.00017534,2]
[390599353,1760100648746,-500.0,0.00017534,2]
[390599354,1760100648758,-500.0,0.00017534,2]
[390599355,1760100648775,-866.12,0.00017534,2]
[390599356,1760100648786,-500.0,0.00017534,2]
[390599357,1760100648796,-761.63,0.00017534,2]
[390599358,1760100648807,-151.0,0.00017534,2]
[390599359,1760100648818,-192.61382004,0.00017534,2]
[390599360,1760100648828,-151.0,0.00017534,2]
[390599361,1760100648837,-151.0,0.00017534,2]
[390599362,1760100648846,-1374.74,0.00017534,2]
[390599363,1760100648855,-500.0,0.00017534,2]
[390599364,1760100648865,-631.69,0.00017534,2]
[390599365,1760100648873,-486.21918885,0.00017534,2]
[390599366,1760100648883,-151.0,0.00017534,2]
[390599367,1760100648892,-151.0,0.00017534,2]
[390599368,1760100648901,-152.507168,0.00017534,2]
[390599369,1760100648910,-691.07,0.00017534,2]
[390599370,1760100648919,-500.0,0.00017534,2]
[390599371,1760100648928,-245.798995,0.00017534,2]
[390599372,1760100648937,-500.0,0.00017534,2]
[390599373,1760100648946,-151.0,0.00017534,2]
[390599374,1760100648955,-568.67,0.00017534,2]
[390599375,1760100648964,-152.275113,0.00017534,2]
[390599376,1760100648973,-500.0,0.00017534,2]
[390599377,1760100648982,-151.0,0.00017534,2]
[390599378,1760100648991,-1135.66,0.00017534,2]
[390599379,1760100648999,-500.0,0.00017534,2]
[390599380,1760100649009,-151.0,0.00017534,2]
[390599381,1760100649018,-802.08,0.00017534,2]
[390599382,1760100649027,-1224.57,0.00017534,2]
[390599383,1760100649036,-500.0,0.00017534,2]
[390599384,1760100649045,-500.0,0.00017534,2]
[390599385,1760100649054,-500.0,0.00017534,2]
[390599386,1760100649064,-500.0,0.00017534,2]
[390599387,1760100649073,-151.0,0.00017534,2]
[390599388,1760100649082,-151.0,0.00017534,2]
[390599389,1760100649091,-500.0,0.00017534,2]
[390599390,1760100649100,-151.0,0.00017534,2]
[390599391,1760100649110,-500.0,0.00017534,2]
[390599392,1760100649119,-151.0,0.00017534,2]
[390599393,1760100649129,-500.0,0.00017534,2]
[390599394,1760100649139,-500.0,0.00017534,2]
[390599395,1760100649148,-500.0,0.00017534,2]
[390599396,1760100649158,-151.0,0.00017534,2]
[390599397,1760100649167,-925.79,0.00017534,2]
[390599398,1760100649176,-500.0,0.00017534,2]
[390599399,1760100649186,-500.0,0.00017534,2]
[390599400,1760100649195,-500.0,0.00017534,2]
[390599401,1760100649204,-4912.41,0.00017534,2]
[390599402,1760100649213,-500.0,0.00017534,2]
[390599403,1760100649224,-500.0,0.00017534,2]
[390599404,1760100649234,-500.0,0.00017534,2]
[390599405,1760100649243,-500.0,0.00017534,2]
[390599406,1760100649252,-500.0,0.00017534,2]
[390599407,1760100649261,-500.0,0.00017534,2]
[390599408,1760100649270,-151.0,0.00017534,2]
[390599409,1760100649279,-151.0,0.00017534,2]
[390599410,1760100649288,-165.22018724,0.00017534,2]
[390599411,1760100649297,-500.0,0.00017534,2]
[390599412,1760100649306,-644.11,0.00017534,2]
[390599413,1760100649315,-359.00745,0.00017534,2]
[390599414,1760100649325,-359.00745,0.00017534,2]
[390599415,1760100649335,-359.00745,0.00017534,2]
[390599416,1760100649344,-359.00745,0.00017534,2]
[390599417,1760100649353,-604.21,0.00017534,2]
[390599418,1760100649363,-500.0,0.00017534,2]
[390599419,1760100649373,-294.42,0.00017534,2]
[390599420,1760100649382,-500.0,0.00017534,2]
[390599421,1760100649392,-618.97,0.00017534,2]
[390599422,1760100649401,-1292.2,0.00017534,2]
[390599423,1760100649410,-6221.6,0.00017534,2]
[390599424,1760100649419,-4740.98,0.00017534,2]
[390599425,1760100649429,-500.0,0.00017534,2]
[390599426,1760100649438,-500.0,0.00017534,2]
[390599427,1760100649447,-500.0,0.00017534,2]
[390599428,1760100649456,-1636.15,0.00017534,2]
[390599429,1760100649465,-366.7035277,0.00017534,2]
[390599430,1760100649474,-1636.85,0.00017534,2]
[390599431,1760100649484,-636.74,0.00017534,2]
[390599432,1760100649493,-1907.54,0.00017534,2]
[390599433,1760100649503,-500.0,0.00017534,2]
[390599434,1760100649511,-500.0,0.00017534,2]
[390599435,1760100649521,-680.61,0.00017534,2]
[390599436,1760100649530,-2232.5,0.00017534,2]
[390599437,1760100649539,-718.36,0.00017534,2]
[390599438,1760100649547,-1107.56,0.00017534,2]
[390599439,1760100649556,-500.0,0.00017534,2]
[390599440,1760100649565,-910.01,0.00017534,2]
[390599441,1760100649574,-151.0,0.00017534,2]
[390599442,1760100649583,-644.11,0.00017534,2]
[390599443,1760100649592,-3977.38,0.00017534,2]
[390599444,1760100649601,-2829.06,0.00017534,2]
[390599445,1760100649610,-661.07,0.00017534,2]
[390599446,1760100649619,-947.3,0.00017534,2]
[390599447,1760100649628,-1130.39,0.00017534,2]
[390599448,1760100649636,-500.0,0.00017534,2]
[390599449,1760100649645,-582.38,0.00017534,2]
[390599450,1760100649654,-725.03,0.00017534,2]
[390599451,1760100649663,-876.53,0.00017534,2]
[390599452,1760100649672,-500.0,0.00017534,2]
[390599453,1760100649681,-500.0,0.00017534,2]
[390599454,1760100649690,-500.0,0.00017534,2]
[390599455,1760100649699,-500.0,0.00017534,2]
[390599456,1760100649708,-447.73415911,0.00017534,2]
[390599457,1760100649721,-320.003172,0.00017534,2]
[390599458,1760100649730,-1845.07,0.00017534,2]
[390599459,1760100649739,-320.003172,0.00017534,2]
[390599460,1760100649748,-513.32,0.00017534,2]
[390599461,1760100649757,-1930.29,0.00017534,2]
[390599462,1760100649767,-320.003172,0.00017534,2]
[390599463,1760100649776,-320.003172,0.00017534,2]
[390599464,1760100649786,-500.0,0.00017534,2]
[390599465,1760100649795,-177.607044,0.00017534,2]
[390599466,1760100649804,-177.607044,0.00017534,2]
[390599467,1760100649814,-500.0,0.00017534,2]
[390599468,1760100649823,-177.607044,0.00017534,2]
[390599469,1760100649832,-177.607044,0.00017534,2]
[390599470,1760100649842,-3127.98,0.00017534,2]
[390599471,1760100649851,-500.0,0.00017534,2]
[390599472,1760100649861,-577.82249199,0.00017534,2]
[390599473,1760100649870,-713.07,0.00017534,2]
[390599474,1760100649880,-691.43,0.00017534,2]
[390599475,1760100649889,-500.0,0.00017534,2]
[390599476,1760100649899,-501.38,0.00017534,2]
[390599477,1760100649909,-500.0,0.00017534,2]
[390599478,1760100649918,-500.0,0.00017534,2]
[390599479,1760100649927,-500.0,0.00017534,2]
[390599480,1760100649936,-585.78,0.00017534,2]
[390599481,1760100649945,-1532.17,0.00017534,2]
[390599482,1760100649955,-728.07,0.00017534,2]
[390599483,1760100649964,-786.43,0.00017534,2]
[390599484,1760100649974,-914.65,0.00017534,2]
[390599485,1760100649983,-2646.0,0.00017534,2]
[390599486,1760100649992,-730.7,0.00017534,2]
[390599487,1760100650001,-500.0,0.00017534,2]
[390599488,1760100650010,-151.0,0.00017534,2]
[390599489,1760100650019,-1999.92,0.00017534,2]
[390599490,1760100650029,-151.0,0.00017534,2]
[390599491,1760100650038,-846.89,0.00017534,2]
[390599492,1760100650047,-786.83,0.00017534,2]
[390599493,1760100650056,-500.0,0.00017534,2]
[390599494,1760100650066,-293.014755,0.00017534,2]
[390599495,1760100650075,-540.24,0.00017534,2]
[390599496,1760100650084,-293.014755,0.00017534,2]
[390599497,1760100650094,-500.0,0.00017534,2]
[390599498,1760100650103,-293.014755,0.00017534,2]
[390599499,1760100650112,-821.38,0.00017534,2]
[390599500,1760100650121,-500.0,0.00017534,2]
[390599501,1760100650130,-293.014752,0.00017534,2]
[390599502,1760100650140,-426.40282211,0.00017534,2]
[390599503,1760100650149,-500.0,0.00017534,2]
[390599504,1760100650158,-500.0,0.00017534,2]
[390599505,1760100650168,-164.290987,0.00017534,2]
[390599506,1760100650178,-164.290987,0.00017534,2]
[390599507,1760100650187,-164.290987,0.00017534,2]
[390599508,1760100650198,-164.290991,0.00017534,2]
[390599509,1760100650211,-520.46262448,0.00017534,2]
[390599510,1760100650220,-500.0,0.00017534,2]
[390599511,1760100650231,-500.0,0.00017534,2]
[390599512,1760100650240,-500.0,0.00017534,2]
[390599513,1760100650250,-500.0,0.00017534,2]
[390599514,1760100650260,-573.53,0.00017534,2]
[390599515,1760100650270,-1694.54,0.00017534,2]
[390599516,1760100650280,-820.05,0.00017534,2]
[390599517,1760100650290,-500.0,0.00017534,2]
[390599518,1760100650300,-500.0,0.00017534,2]
[390599519,1760100650311,-601.56279864,0.0001754,2]
[390599520,1760100650320,-980.0,0.00017553,2]
[390599521,1760100650330,-630.0,0.00017553,2]
[390599522,1760100650340,-2159.0,0.00017553,2]
[390599523,1760100650350,-150.0,0.00017553,2]
[390599524,1760100650359,-161.86847584,0.00017554,2]
[390599525,1760100650368,-500.0,0.00017554,2]
[390599526,1760100650378,-500.0,0.00017554,2]
[390599527,1760100650387,-500.0,0.00017554,2]
[390599528,1760100650397,-500.0,0.00017554,2]
[390599529,1760100650406,-500.0,0.00017554,2]
[390599530,1760100650415,-500.0,0.00017554,2]
[390599531,1760100650424,-603.50315605,0.00017578,2]
[390599532,1760100650434,-942.0,0.00017589,2]
[390599533,1760100650443,-163.42542046,0.000176,2]
[390599534,1760100650452,-942.0,0.00017643,2]
[390599535,1760100650461,-4195.0,0.00017647,2]
[390599536,1760100650471,-394.46463116,0.00017663,2]
[390599537,1760100650480,-168.0,0.00017683,2]
[390599538,1760100650490,-948.0,0.00017698,2]
[390599539,1760100650499,-232.0,0.00017707,2]
[390599540,1760100650508,-232.0,0.0001771,2]
[390599541,1760100650518,-3928.4449145,0.0001772,2]
[390599542,1760100650527,-279.947969,0.0001772,2]
[390599543,1760100650538,-208.468505,0.00017729,2]
[390599544,1760100650547,-151.0,0.00017748,2]
[390599545,1760100650557,-320.003172,0.00017748,2]
[390599546,1760100650566,-320.003172,0.00017748,2]
[390599547,1760100650575,-320.003172,0.00017748,2]
[390599548,1760100650585,-320.003182,0.00017748,2]
[390599549,1760100650595,-177.607044,0.00017748,2]
[390599550,1760100650604,-177.607044,0.00017748,2]
[390599551,1760100650614,-177.607044,0.00017748,2]
[390599552,1760100650625,-177.607043,0.00017748,2]
[390599553,1760100650634,-501.05544168,0.00017748,2]
[390599554,1760100650645,-500.0,0.00017748,2]
[390599555,1760100650655,-500.0,0.00017748,2]
[390599556,1760100650664,-500.0,0.00017748,2]
[390599557,1760100650675,-500.0,0.00017748,2]
[390599558,1760100650685,-165.24160476,0.00017748,2]
[390599559,1760100650695,-500.0,0.00017748,2]
[390599560,1760100650704,-500.0,0.00017748,2]
[390599561,1760100650717,-214.21809975,0.00017748,2]
[390599562,1760100650726,-500.0,0.00017748,2]
[390599563,1760100650737,-627.54677909,0.00017748,2]
[390599564,1760100650746,-505.45386967,0.00017748,2]
[390599565,1760100650756,-500.0,0.00017748,2]
[390599566,1760100650765,-500.0,0.00017748,2]
[390599567,1760100650775,-500.0,0.00017748,2]
[390599568,1760100650784,-500.0,0.00017752,2]
[390599569,1760100650799,-498.33544719,0.00017752,2]
[390599570,1760100650944,-500.0,0.00017752,2]
[390599571,1760100650955,-500.0,0.00017752,2]
[390599572,1760100650965,-642.55581265,0.00017752,2]
[390599573,1760100650974,-500.0,0.00017752,2]
[390599574,1760100650984,-4682.0,0.00017763,2]
[390599575,1760100650994,-232.0,0.00017785,2]
[390599576,1760100651003,-151.0,0.00017787,2]
[390599577,1760100651013,-151.0,0.00017787,2]
[390599578,1760100651022,-500.0,0.00017787,2]
[390599579,1760100651032,-500.0,0.00017787,2]
[390599580,1760100651041,-500.0,0.00017787,2]
[390599581,1760100651051,-372.71606127,0.00017787,2]
[390599582,1760100651060,-500.0,0.00017787,2]
[390599583,1760100651070,-500.0,0.00017787,2]
[390599584,1760100651082,-500.0,0.00017787,2]
[390599585,1760100651092,-500.0,0.00017808,2]
[390599586,1760100651101,-500.0,0.00017808,2]
[390599587,1760100651111,-500.0,0.00017808,2]
[390599588,1760100651120,-500.0,0.00017808,2]
[390599589,1760100651131,-500.0,0.00017808,2]
[390599590,1760100651140,-866.12,0.00017808,2]
[390599591,1760100651150,-500.0,0.00017808,2]
[390599592,1760100651159,-761.63,0.00017808,2]
[390599593,1760100651168,-151.0,0.00017808,2]
[390599594,1760100651177,-151.0,0.00017808,2]
[390599595,1760100651187,-151.0,0.00017808,2]